[Event "13th Palmanova Festival A 2024"]
[Site "Palmanova"]
[Date "2024.12.28"]
[Round "2.12"]
[White "Di Benedetto, Edoardo"]
[Black "Zoncu, Roberto Alessio"]
[Result "1-0"]
[ECO "D05"]
[WhiteElo "2411"]
[BlackElo "2165"]
[Annotator "RC"]
[PlyCount "105"]
[EventDate "2024.12.27"]
[EventCountry "ITA"]
[SourceTitle "playchess.com"]
[Source "ChessBase"]
[SourceQuality "1"]
[TimeControl "6000+30"]

1. Nf3 {[%emt 0:04:10]} Nf6 {[%emt 0:00:14]} 2. e3 {[%emt 0:00:10]} e6 {[%emt 0:01:33]} 3. d4 {[%emt 0:01:38]} b6 {[%emt 0:02:17]} 4. Bd3 {[%emt 0:00:20]} Bb7 {[%emt 0:02:53]} 5. Nbd2 {[%emt 0:01:28]} c5 {[%emt 0:04:15]} 6. O-O {[%emt 0:01:32]} Be7 {[%emt 0:00:35]} 7. b3 {[%emt 0:00:19]} O-O {[%emt 0:00:40]} 8. Bb2 {[%emt 0:00:40]} d5 {[%emt 0:07:24]} 9. Ne5 {[%emt 0:02:03]} Nbd7 {[%emt 0:01:25]} 10. f4 {[%emt 0:01:41]} cxd4 {[%emt 0:11:54]} 11. exd4 {[%emt 0:00:35]} Ne4 {[%emt 0:00:44]} 12. Nxe4 {[%emt 0:05:44]} dxe4 {[%emt 0:00:13]} 13. Bc4 {[%emt 0:09:34]} Nf6 {[%emt 0:07:32]} 14. Qe2 {[%emt 0:10:26]} Rc8 {[%emt 0:11:57]} 15. f5 {[%emt 0:08:16]} exf5 {[%emt 0:10:24]} 16. Rxf5 {[%emt 0:00:29]} Ba3 {[%emt 0:13:28]} 17. c3 {[%emt 0:00:34]} Bxb2 {[%emt 0:03:33]} 18. Qxb2 {[%emt 0:00:09]} Nd5 {[%emt 0:00:48]} 19. Raf1 {[%emt 0:03:33]} Rc7 {[%emt 0:09:23]} 20. Ng4 {[%emt 0:19:19]} Qh4 {[%emt 0:07:33]} 21. h3 {[%emt 0:05:38]} Rd7 {[%emt 0:07:39]} 22. Bxd5 {[%emt 0:01:55]} Rxd5 {[%emt 0:00:24]} 23. R5f4 {[%emt 0:01:32]} Qe7 {[%emt 0:00:30]} 24. c4 {[%emt 0:01:24]} Rg5 {[%emt 0:01:41]} 25. d5 {[%emt 0:00:47]} Bc8 {[%emt 0:01:10]} 26. Qd4 {[%emt 0:00:49]} h5 {[%emt 0:02:01]} 27. Rxe4 {[%emt 0:00:55]} Qd6 {[%emt 0:00:17]} 28. Re5 {[%emt 0:00:30]} Qg6 {[%emt 0:00:56]} 29. Rxg5 {[%emt 0:00:29]} Qxg5 {[%emt 0:00:14]} 30. Qe3 {[%emt 0:00:26]} Qxe3+ {[%emt 0:01:09]} 31. Nxe3 {[%emt 0:00:02]} Re8 {[%emt 0:00:09]} 32. Kf2 {[%emt 0:00:44]} f5 {[%emt 0:00:46]} 33. Nc2 {[%emt 0:02:46]} Kf7 {[%emt 0:00:33]} 34. Nd4 {[%emt 0:00:52]} Bd7 {[%emt 0:00:17]} 35. Nf3 {[%emt 0:00:48]} Kf6 {[%emt 0:00:35]} 36. h4 {[%emt 0:00:03]} Rc8 {[%emt 0:00:22]} 37. Ke3 {[%emt 0:00:25]} Re8+ {[%emt 0:00:48]} 38. Kf2 {[%emt 0:01:53]} Rc8 {[%emt 0:00:17]} 39. Re1 {[%emt 0:00:21]} a5 {[%emt 0:00:53]} 40. Ke3 {[%emt 0:00:09]} a4 {[%emt 0:00:29]} 41. Kd4 {[%emt 0:00:18]} axb3 {[%emt 0:00:00]} 42. axb3 {[%emt 0:00:00]} Ra8 {[%emt 0:00:00]} 43. b4 {[%emt 0:00:00]} Ra4 {[%emt 0:00:00]} 44. Kc3 {[%emt 0:00:00]} f4 {[%emt 0:00:00]} 45. Kb3 {[%emt 0:00:00]} Ra7 {[%emt 0:00:00]} 46. c5 {[%emt 0:00:00]} bxc5 {[%emt 0:00:00]} 47. bxc5 {[%emt 0:00:00]} Ra5 {[%emt 0:00:00]} 48. c6 {[%emt 0:00:00]} Rxd5 {[%emt 0:00:00]} 49. cxd7 {[%emt 0:00:00]} Rxd7 {[%emt 0:00:00]} 50. Re4 {[%emt 0:00:00]} Kf5 {[%emt 0:00:00]} 51. Re5+ {[%emt 0:00:00]} Kf6 {[%emt 0:00:00]} 52. Rxh5 {[%emt 0:00:00]} Re7 {[%emt 0:00:00]} 53. Kc3 {[%emt 0:00:00]} 1-0

[Event "13th Palmanova Festival A 2024"]
[Site "Palmanova"]
[Date "2024.12.28"]
[Round "2.13"]
[White "Belli, Giorgio"]
[Black "Marn, Jan"]
[Result "1/2-1/2"]
[ECO "C95"]
[WhiteElo "2205"]
[BlackElo "2400"]
[Annotator "RC"]
[PlyCount "97"]
[EventDate "2024.12.27"]
[EventCountry "ITA"]
[SourceTitle "playchess.com"]
[Source "ChessBase"]
[SourceQuality "1"]
[TimeControl "6000+30"]

1. e4 {[%emt 0:05:13]} e5 {[%emt 0:03:05]} 2. Nf3 {[%emt 0:00:10]} Nc6 {[%emt 0:00:07]} 3. Bb5 {[%emt 0:00:35]} a6 {[%emt 0:00:08]} 4. Ba4 {[%emt 0:00:30]} Nf6 {[%emt 0:00:27]} 5. O-O {[%emt 0:00:12]} Be7 {[%emt 0:00:04]} 6. Re1 {[%emt 0:00:19]} b5 {[%emt 0:00:06]} 7. Bb3 {[%emt 0:00:08]} d6 {[%emt 0:00:07]} 8. c3 {[%emt 0:00:10]} O-O {[%emt 0:00:07]} 9. h3 {[%emt 0:00:06]} Nb8 {[%emt 0:00:11]} 10. d4 {[%emt 0:00:15]} Nbd7 {[%emt 0:00:05]} 11. a4 {[%emt 0:00:48]} Bb7 {[%emt 0:01:02]} 12. Nbd2 {[%emt 0:00:10]} c5 {[%emt 0:05:42]} 13. d5 {[%emt 0:04:49]} c4 {[%emt 0:03:22]} 14. Bc2 {[%emt 0:00:15]} Re8 {[%emt 0:00:05]} 15. Nf1 {[%emt 0:05:50]} Bf8 {[%emt 0:00:29]} 16. Ng3 {[%emt 0:01:59]} g6 {[%emt 0:00:09]} 17. Nh2 {[%emt 0:01:24]} Nc5 {[%emt 0:26:37]} 18. Bg5 {[%emt 0:09:03]} h6 {[%emt 0:02:08]} 19. Be3 {[%emt 0:01:30]} h5 {[%emt 0:01:19]} 20. Bg5 {[%emt 0:03:18]} Be7 {[%emt 0:00:11]} 21. f4 {[%emt 0:11:34]} h4 {[%emt 0:08:38]} 22. Ngf1 {[%emt 0:00:48]} Nh5 {[%emt 0:01:44]} 23. Bxe7 Qxe7 {[%emt 0:00:03]} 24. f5 {[%emt 0:02:09]} Qg5 {[%emt 0:03:45]} 25. Nf3 {[%emt 0:03:08]} Qf4 {[%emt 0:02:10]} 26. N1h2 {[%emt 0:06:44]} gxf5 27. exf5 {[%emt 0:00:46]} e4 {[%emt 0:12:16]} 28. Nd4 {[%emt 0:00:15]} Ng3 {[%emt 0:00:06]} 29. Qg4+ {[%emt 0:01:40]} Qxg4 {[%emt 0:00:06]} 30. Nxg4 {[%emt 0:00:04]} Kg7 {[%emt 0:00:27]} 31. Ne3 {[%emt 0:09:53]} Nd3 {[%emt 0:03:32]} 32. Reb1 {[%emt 0:00:14]} Rab8 {[%emt 0:27:45]} 33. axb5 {[%emt 0:03:32]} axb5 {[%emt 0:00:01]} 34. Nxb5 {[%emt 0:03:53]} Red8 {[%emt 0:00:20]} 35. Nd4 {[%emt 0:02:34]} Ne5 {[%emt 0:00:08]} 36. b4 {[%emt 0:01:03]} cxb3 {[%emt 0:02:03]} 37. Rxb3 {[%emt 0:00:44]} Ba8 {[%emt 0:00:45]} 38. Rxb8 {[%emt 0:02:32]} Rxb8 {[%emt 0:00:07]} 39. Ra6 {[%emt 0:00:16]} Rc8 {[%emt 0:03:42]} 40. Nb5 {[%emt 0:03:07]} Rc5 {[%emt 0:00:31]} 41. Nxd6 {[%emt 0:01:41]} Rxc3 {[%emt 0:06:12]} 42. f6+ {[%emt 0:12:01]} Kh6 {[%emt 0:00:00]} 43. Nef5+ {[%emt 0:00:00]} Nxf5 {[%emt 0:00:00]} 44. Nxf5+ {[%emt 0:00:00]} Kg5 {[%emt 0:00:00]} 45. Bxe4 {[%emt 0:00:00]} Bxd5 {[%emt 0:00:00]} 46. Bxd5 {[%emt 0:00:00]} Kxf5 {[%emt 0:00:00]} 47. Ra4 {[%emt 0:00:00]} Rc5 {[%emt 0:00:00]} 48. Ba2 {[%emt 0:00:00]} Kg5 {[%emt 0:00:00]} 49. Kh2 {[%emt 0:19:38]} 1/2-1/2

[Event "13th Palmanova Festival A 2024"]
[Site "Palmanova"]
[Date "2024.12.28"]
[Round "2.14"]
[White "Mazzini, Mauro"]
[Black "Savanovic, Aleksandar"]
[Result "0-1"]
[ECO "C56"]
[WhiteElo "2069"]
[BlackElo "2354"]
[Annotator "RC"]
[PlyCount "40"]
[EventDate "2024.12.27"]
[EventCountry "ITA"]
[SourceTitle "playchess.com"]
[Source "ChessBase"]
[SourceQuality "1"]
[TimeControl "6000+30"]

1. e4 {[%emt 0:00:04]} e5 {[%emt 0:01:18]} 2. Nf3 {[%emt 0:00:48]} Nc6 {[%emt 0:00:07]} 3. d4 {[%emt 0:00:08]} exd4 {[%emt 0:00:12]} 4. Bc4 {[%emt 0:00:08]} Nf6 {[%emt 0:01:48]} 5. e5 {[%emt 0:00:11]} d5 {[%emt 0:00:23]} 6. Bb5 {[%emt 0:00:07]} Ne4 {[%emt 0:00:50]} 7. Nxd4 {[%emt 0:00:18]} Bd7 {[%emt 0:00:13]} 8. Bxc6 {[%emt 0:00:08]} bxc6 {[%emt 0:00:05]} 9. O-O {[%emt 0:00:16]} Bc5 {[%emt 0:00:08]} 10. f3 {[%emt 0:00:19]} Ng5 {[%emt 0:00:09]} 11. f4 {[%emt 0:01:04]} Ne6 {[%emt 0:00:29]} 12. c3 {[%emt 0:02:29]} f5 {[%emt 0:01:36]} 13. Be3 {[%emt 0:01:44]} O-O {[%emt 0:00:19]} 14. b4 {[%emt 0:04:34]} Bxd4 {[%emt 0:09:40]} 15. Bxd4 {[%emt 0:06:00]} Qe7 {[%emt 0:03:25]} 16. Be3 {[%emt 0:03:55]} a5 {[%emt 0:05:15]} 17. a3 {[%emt 0:08:38]} axb4 {[%emt 0:08:05]} 18. cxb4 {[%emt 0:00:11]} c5 {[%emt 0:00:22]} 19. bxc5 {[%emt 0:04:21]} d4 {[%emt 0:01:44]} 20. Bxd4 {[%emt 0:04:27]} Ba4 {[%emt 0:00:32]} 0-1